bitfinex/quotes_SOLUSD_20240718
["timestamp","ask_amount","ask_price","bid_price","bid_amount"]
[1721265645704,6.3099,158.48,158.47,0.5]
[1721265645898,6.55252644,158.54,158.47,0.5]
[1721265646106,6.3095,158.5,158.47,0.5]
[1721265646529,6.3096,158.49,158.47,0.5]
[1721265647235,6.309,158.51,158.47,0.5]
[1721265647538,6.3092,158.5,158.47,0.5]
[1721265648112,6.3095,158.49,158.47,0.5]
[1721265649120,6.3092,158.5,158.47,0.5]
[1721265649613,15.7682,158.55,158.47,0.5]
[1721265649806,65.0,158.54,158.47,0.5]
[1721265650004,6.3077,158.54,158.49,6.3095]
[1721265650313,6.3077,158.54,158.49,7.57114272]
[1721265650940,6.3079,158.53,158.49,7.57114272]
[1721265651631,15.7646,158.59,158.49,17.03454272]
[1721265651812,65.0,158.58,158.49,17.03454272]
[1721265652014,6.3078,158.54,158.49,23.34394272]
[1721265652630,6.308,158.53,158.49,15.7729]
[1721265652933,6.3083,158.52,158.48,28.5359]
[1721265653446,15.7665,158.57,158.49,1.26164989]
[1721265653741,291.0665,158.61,158.5,15.7721]
[1721265653930,37.5665,158.61,158.51,1.26142215]
[1721265654133,6.3072,158.55,158.52,1.26142215]
[1721265654807,6.3072,158.55,158.5,15.7721]
[1721265655006,6.3072,158.55,158.51,1.26142495]
[1721265655233,6.3072,158.55,158.52,1.26142287]
[1721265655734,6.3067,158.56,158.51,6.3087]
[1721265656030,6.3062,158.58,158.52,17.03132081]
[1721265656240,22.0084,158.66,158.52,17.03132081]
[1721265656241,22.0084,158.7,158.55,6.0995]
[1721265656430,6.3039,158.64,158.58,6.3059]
[1721265656612,6.3032,158.65,158.6,22.2388]
[1721265656921,6.3039,158.63,158.6,15.9337]
[1721265657124,6.3036,158.64,158.6,17.19454064]
[1721265657525,6.3039,158.63,158.6,15.9337]
[1721265661235,15.7557,158.68,158.6,15.9337]
[1721265661236,6.3036,158.64,158.6,15.9337]
[1721265661910,6.3039,158.63,158.6,15.9337]
[1721265662310,6.3036,158.64,158.6,15.9337]
[1721265662613,6.3032,158.65,158.6,23.49953091]
[1721265663014,6.3036,158.64,158.6,17.19453091]
[1721265664244,6.304,158.63,158.6,17.19453091]
[1721265664816,6.3037,158.64,158.6,17.19453091]
[1721265665033,6.304,158.63,158.6,17.19453091]
[1721265665232,6.304,158.63,158.6,15.9337]
[1721265665749,6.3047,158.61,158.6,15.9337]
[1721265671533,6.3041,158.63,158.6,15.9337]
[1721265673750,6.3036,158.64,158.6,15.9337]
[1721265674120,15.7577,158.66,158.6,15.9337]
[1721265674121,6.304,158.63,158.6,15.9337]
[1721265674540,6.3035,158.65,158.6,17.19454635]
[1721265674741,6.3033,158.65,158.61,1.26084635]
[1721265674948,15.7542,158.69,158.61,1.26084635]
[1721265674949,6.3036,158.64,158.61,1.26084635]
[1721265677041,6.3036,158.64,158.63,21.358936]
[1721265678751,51.3036,158.64,158.63,21.358936]
[1721265684674,6.3032,158.65,158.63,21.358936]
[1721265685360,6.3024,158.67,158.63,21.358936]
[1721265685544,6.3028,158.66,158.63,21.358936]
[1721265686963,6.3032,158.65,158.63,21.358936]
[1721265687153,253.5,158.74,158.63,21.358936]
[1721265687154,6.3035,158.64,158.63,21.358936]
[1721265687957,6.60234913,158.71,158.63,21.358936]
[1721265687958,6.3032,158.65,158.63,21.358936]
[1721265688131,15.7533,158.7,158.63,21.358936]
[1721265688132,6.3035,158.64,158.63,21.358936]
[1721265689359,51.3035,158.64,158.63,21.358936]
[1721265700282,6.3035,158.64,158.63,21.358936]
[1721265702678,48.03640995,158.72,158.63,21.358936]
[1721265702972,6.3027,158.67,158.64,1.26050957]
[1721265703149,6.302,158.68,158.65,1.26048923]
[1721265703351,6.302,158.68,158.64,1.26048279]
[1721265703550,6.302,158.68,158.63,43.422636]
[1721265703871,6.3024,158.67,158.63,43.422636]
[1721265704169,6.3024,158.67,158.63,37.118836]
[1721265705545,6.3034,158.65,158.63,21.358936]
[1721265706652,6.3035,158.64,158.63,21.358936]
[1721265708468,51.3035,158.64,158.63,21.358936]
[1721265712855,45.0,158.64,158.63,21.358936]
[1721265713261,6.3028,158.66,158.63,21.358936]
[1721265713781,6.3035,158.64,158.63,21.358936]
[1721265714282,6.3032,158.65,158.63,21.358936]
[1721265715354,6.3035,158.64,158.63,21.358936]
[1721265715964,51.3035,158.64,158.63,21.358936]
[1721265716179,6.3035,158.64,158.63,21.358936]
[1721265717081,51.3035,158.64,158.63,21.358936]
[1721265719174,45.0,158.64,158.63,21.358936]
[1721265719489,51.3035,158.64,158.63,21.358936]
[1721265719779,45.0,158.64,158.63,21.358936]
[1721265719981,51.3035,158.64,158.63,21.358936]
[1721265725474,51.3035,158.64,158.63,21.358936]
[1721265728488,6.3063,158.57,158.56,15.8441]
[1721265729569,6.306,158.58,158.56,15.8441]
[1721265730571,15.7621,158.61,158.54,6.4774]
[1721265730784,45.0,158.6,158.54,6.4774]
[1721265730999,6.3064,158.57,158.55,1.26139131]
[1721265731507,0.78392413,158.65,158.61,6.3046]
[1721265731667,0.78392413,158.7,158.62,1.26072194]
[1721265731867,31.5024,158.72,158.61,6.355]
[1721265732068,38.85743152,158.72,158.61,6.355]
[1721265732294,37.18812556,158.72,158.61,6.355]
[1721265732504,7.35586636,158.71,158.61,6.355]
[1721265732874,20.0,158.7,158.61,6.355]
[1721265733195,6.3039,158.63,158.59,15.7632]
[1721265734075,6.3039,158.63,158.59,22.0687]
[1721265734274,6.3047,158.62,158.58,16.0978]
[1721265735487,6.3047,158.62,158.58,17.35875578]
[1721265735794,15.7556,158.68,158.58,17.35875578]
[1721265735795,6.3049,158.61,158.58,17.35875578]
[1721265735980,6.3049,158.61,158.58,16.0978]
[1721265738176,6.3044,158.62,158.58,17.35883118]
[1721265738490,6.3044,158.62,158.58,16.0978]
[1721265741110,6.3044,158.62,158.58,17.35882849]
[1721265741481,6.3044,158.62,158.58,16.0978]
[1721265741683,45.0,158.69,158.59,1.26102912]
[1721265741883,20.0,158.68,158.59,7.56652912]
[1721265742102,45.0,158.67,158.6,6.3051]
[1721265742297,7.35586636,158.7,158.61,1.26082849]
[1721265742475,37.18812556,158.72,158.62,6.3042]
[1721265742679,6.3028,158.66,158.62,7.56486142]
[1721265742878,6.3028,158.66,158.62,1.26066142]
[1721265743080,15.7537,158.7,158.62,1.26066142]
[1721265743081,6.3024,158.67,158.62,7.56486142]
[1721265743295,6.302,158.68,158.63,6.3039]
[1721265743610,6.302,158.68,158.64,1.26047836]
[1721265743795,6.3024,158.67,158.65,1.26047744]
[1721265744115,6.3024,158.67,158.64,1.26049556]
[1721265744282,6.3024,158.67,158.65,1.26053302]
[1721265744480,6.3024,158.67,158.63,1.26050262]
[1721265744686,6.3027,158.66,158.62,22.0643]
[1721265744987,6.3027,158.66,158.62,15.7601]
[1721265745601,6.3021,158.68,158.62,15.7601]
[1721265745917,5.68572556,158.72,158.62,15.7601]
[1721265746213,65.0,158.71,158.62,15.7601]
[1721265747107,6.3028,158.66,158.62,15.7601]
[1721265747482,65.0,158.71,158.59,15.7638]
[1721265748311,6.3037,158.64,158.59,22.069]
[1721265748698,6.3037,158.64,158.6,6.3051]
[1721265749702,6.3043,158.63,158.59,15.7638]
[1721265749900,6.304,158.63,158.59,15.7638]
[1721265750414,6.3043,158.62,158.59,1.26080978]
[1721265750619,6.304,158.63,158.59,6.3055]
[1721265750790,6.3036,158.64,158.6,6.3051]
[1721265750991,6.3036,158.64,158.59,6.3055]
[1721265751698,6.3032,158.65,158.58,31.8617]
[1721265751897,6.3032,158.65,158.6,6.305]
[1721265752792,6.3036,158.64,158.6,6.305]
[1721265752995,15.7533,158.7,158.6,6.305]
[1721265753205,6.3032,158.65,158.6,6.305]
[1721265753808,6.3036,158.64,158.6,6.305]
[1721265754014,6.3036,158.64,158.59,6.3055]
[1721265754520,6.3036,158.64,158.6,6.305]
[1721265758223,6.3036,158.64,158.58,31.8617]
[1721265758224,14.75925546,158.71,158.61,41.3565]
[1721265758533,5.68572556,158.72,158.68,15.754]
[1721265758534,6.3004,158.72,158.68,15.754]
[1721265758827,5.68572556,158.76,158.68,1.26021717]
[1721265758828,6.3008,158.71,158.68,1.26021717]
[1721265759497,6.3012,158.7,158.68,1.26021717]
[1721265759832,6.3017,158.69,158.65,15.7574]
[1721265760001,6.3017,158.69,158.66,1.26032119]
[1721265760204,6.3013,158.7,158.66,1.26032119]
[1721265761503,6.3013,158.7,158.65,22.0604]
[1721265763359,6.3013,158.7,158.66,1.26032067]
[1721265763744,6.3016,158.69,158.66,1.26032067]
[1721265764458,6.3016,158.69,158.65,22.0604]
[1721265764856,6.3013,158.7,158.65,22.0604]
[1721265765156,6.3016,158.69,158.65,22.0604]
[1721265766144,6.3013,158.7,158.66,1.26032042]
[1721265766334,6.3013,158.7,158.65,22.0604]
[1721265770246,6.3016,158.69,158.65,22.0604]
[1721265772255,6.3013,158.7,158.65,22.0604]
[1721265773056,6.3022,158.68,158.63,6.3038]
[1721265773357,37.18162556,158.76,158.62,22.0646]
[1721265773358,6.3024,158.67,158.62,22.0646]
[1721265773735,6.3024,158.67,158.63,6.3039]
[1721265774343,6.3024,158.67,158.64,1.26046798]
[1721265774658,6.303,158.66,158.62,15.7606]
[1721265775359,6.303,158.66,158.62,17.02118122]
[1721265775573,6.3037,158.64,158.61,22.4065]
[1721265775776,6.3032,158.65,158.61,22.4065]
[1721265776056,6.301,158.71,158.66,6.3024]
[1721265776233,6.3016,158.69,158.65,22.0608]
[1721265776434,6.3012,158.7,158.65,23.32117063]
[1721265777356,6.3016,158.69,158.65,22.0608]
[1721265778162,6.3016,158.69,158.65,15.7577]
[1721265779661,6.3016,158.69,158.65,22.0608]
[1721265781053,15.7519,158.72,158.62,15.7605]
[1721265781238,6.3027,158.66,158.62,22.0648]
[1721265781656,6.3024,158.67,158.62,22.0648]
[1721265782164,6.302,158.68,158.64,6.3035]
[1721265782365,6.302,158.68,158.63,6.3038]
[1721265782572,6.303,158.66,158.62,15.7605]
[1721265782861,6.303,158.66,158.62,23.32536271]
[1721265783066,6.3024,158.67,158.63,6.3039]
[1721265783257,6.302,158.68,158.64,1.26043464]
[1721265783454,6.302,158.68,158.65,1.26045898]
[1721265783768,6.302,158.68,158.65,1.26045112]
[1721265784071,6.3025,158.67,158.63,6.3038]
[1721265784357,6.3025,158.67,158.62,15.7605]
[1721265784358,6.3019,158.69,158.64,1.26047276]
[1721265784678,6.3019,158.69,158.64,6.3035]
[1721265784965,45.0,158.71,158.65,6.303]
[1721265785265,6.302,158.68,158.64,6.3035]
[1721265785633,6.3025,158.67,158.62,15.7605]
[1721265785853,45.0,158.71,158.62,15.7605]
[1721265786057,6.3028,158.66,158.62,15.7605]
[1721265786443,45.0,158.71,158.61,28.7111]
[1721265786444,6.3032,158.65,158.61,28.7111]
[1721265787471,15.7503,158.73,158.62,1.26070799]
[1721265787776,6.3009,158.71,158.66,6.3025]
[1721265787940,6.3009,158.71,158.67,1.26026271]
[1721265788138,6.3012,158.7,158.65,6.303]
[1721265788363,6.3012,158.7,158.66,6.3027]
[1721265788658,52.92902556,158.76,158.64,15.7584]
[1721265788659,6.3016,158.69,158.65,7.56338949]
[1721265788974,6.3012,158.7,158.65,7.56338949]
[1721265789495,6.3016,158.69,158.65,7.56338949]
[1721265789665,15.7495,158.74,158.65,6.3031]
[1721265789843,45.0,158.73,158.65,6.3031]
[1721265790042,45.0,158.73,158.66,1.26037316]
[1721265790265,45.0,158.73,158.65,6.3031]
[1721265790538,45.0,158.73,158.64,15.7584]
[1721265790767,6.3019,158.69,158.64,22.0618]
[1721265792142,6.3019,158.69,158.65,1.26040305]
[1721265792342,6.302,158.68,158.64,22.0618]
[1721265792567,45.0,158.73,158.66,15.7562]
[1721265792745,6.301,158.71,158.67,1.26025077]
[1721265792945,51.3003,158.73,158.67,21.5993]
[1721265793145,6.3004,158.72,158.68,1.26019308]
[1721265794651,6.3014,158.7,158.68,1.26019308]
[1721265794853,6.3009,158.71,158.68,1.26019308]
[1721265796450,6.3004,158.72,158.68,1.26019308]
[1721265798175,6.3004,158.72,158.68,7.56209634]
[1721265798351,6.3004,158.72,158.68,1.26019634]
[1721265798876,6.3009,158.71,158.67,21.5996]
[1721265799351,6.3009,158.71,158.68,1.26022017]
[1721265799856,6.3013,158.7,158.67,15.2973]
[1721265800058,6.3008,158.71,158.67,15.2973]
[1721265800375,6.3008,158.71,158.68,1.26026052]
[1721265801695,6.3008,158.71,158.67,21.5996]
[1721265802292,6.3008,158.71,158.67,15.2973]
[1721265802589,15.2714,158.77,158.67,21.4634]
[1721265802798,6.2992,158.75,158.7,6.3008]
[1721265802962,6.2992,158.75,158.71,1.25997903]
[1721265804188,6.2996,158.74,158.71,1.25997903]
[1721265804361,6.2996,158.74,158.69,6.3014]
[1721265804787,15.7479,158.76,158.67,21.4634]
[1721265804968,6.3019,158.69,158.67,21.4634]
[1721265807183,6.3012,158.7,158.67,21.4634]
[1721265807574,6.3007,158.72,158.67,21.4634]
[1721265807775,6.3007,158.72,158.67,27.7654]
[1721265807978,6.3007,158.72,158.68,1.26014879]
[1721265808274,61.98238505,158.8,158.68,1.26014879]
[1721265808478,55.43814913,158.8,158.68,1.26014879]
[1721265808684,15.29,158.71,158.7,6.3009]
[1721265808898,15.29,158.71,158.7,7.5609765]
[1721265809969,15.29,158.71,158.69,1.26007647]
[1721265810175,6.3007,158.72,158.67,21.4634]
[1721265810372,6.3,158.73,158.68,6.3019]
[1721265810581,6.2997,158.74,158.69,7.56149299]
[1721265810998,6.2997,158.74,158.69,6.3015]
[1721265811595,6.3,158.73,158.7,1.25999103]
[1721265812378,6.3,158.73,158.71,1.25999379]
[1721265812583,6.3,158.73,158.7,1.25999713]
[1721265814881,6.3,158.73,158.69,6.3015]
[1721265815788,4.56651906,158.81,158.7,24.24869414]
[1721265815995,6.2979,158.79,158.73,6.2996]
[1721265816300,6.2984,158.77,158.73,6.2996]
[1721265816887,3.78480911,158.81,158.7,22.9887]
[1721265817279,6.2993,158.75,158.71,1.25990469]
[1721265817789,6.2993,158.75,158.7,22.9887]
[1721265818918,6.2993,158.75,158.7,29.2897]
[1721265821399,15.7457,158.78,158.7,22.9887]
[1721265821601,45.0,158.77,158.7,22.9887]
[1721265822484,6.3,158.73,158.7,22.9887]
[1721265824900,6.3004,158.72,158.7,16.6545]
[1721265825402,6.3004,158.72,158.67,6.3022]
[1721265825779,6.3004,158.72,158.68,6.3018]
[1721265826009,6.2995,158.75,158.7,6.301]
[1721265826609,6.2997,158.74,158.7,6.301]
[1721265829715,6.2997,158.74,158.69,6.3015]
[1721265830022,45.0,158.77,158.7,15.7522]
[1721265831018,6.2999,158.74,158.7,15.7522]
[1721265832099,6.2999,158.74,158.7,22.0533]
[1721265832298,6.2991,158.76,158.71,6.3007]
[1721265832509,45.0,158.75,158.71,6.3007]
[1721265832714,6.2993,158.75,158.7,22.0532]
[1721265835397,6.2997,158.74,158.7,22.0532]
[1721265835623,6.3,158.73,158.67,15.7556]
[1721265835996,6.3,158.73,158.68,6.3018]
[1721265836422,6.3004,158.72,158.68,6.3018]
[1721265837921,6.3008,158.71,158.67,22.0578]
[1721265838305,6.3005,158.72,158.67,22.0578]
[1721265838927,6.3005,158.72,158.68,6.3019]
[1721265839300,6.3008,158.71,158.67,22.0578]
[1721265839704,6.3005,158.72,158.67,22.0578]
[1721265840325,6.3005,158.72,158.68,6.3019]
[1721265840629,45.0,158.77,158.69,7.56159807]
[1721265840808,45.0,158.76,158.7,6.301]
[1721265841127,45.0,158.78,158.71,1.2600153]
[1721265841698,45.0,158.78,158.7,6.301]
[1721265841898,6.2999,158.74,158.7,1.26007109]
[1721265842995,6.2999,158.74,158.66,22.6334]
[1721265842996,15.7465,158.77,158.66,38.3897]
[1721265843216,6.3006,158.72,158.67,7.56218964]
[1721265843602,6.3009,158.71,158.66,44.6923]
[1721265843800,6.3012,158.7,158.66,28.9361]
[1721265844022,15.29,158.67,158.66,28.9361]
[1721265848030,21.5904,158.72,158.67,6.3021]
[1721265848524,15.29,158.72,158.67,6.3021]
[1721265848732,6.3009,158.71,158.67,6.3021]
[1721265849124,6.3013,158.7,158.66,22.6334]
[1721265849810,6.3016,158.69,158.66,22.6334]
[1721265850005,6.3016,158.69,158.66,16.533]
[1721265850204,6.3016,158.69,158.65,15.7574]
[1721265852107,6.3016,158.69,158.65,22.0605]
[1721265852525,15.29,158.72,158.66,7.56308411]
[1721265852830,6.3006,158.72,158.67,6.3022]
[1721265853033,6.3008,158.71,158.68,1.26020154]
[1721265853411,15.29,158.69,158.66,6.3026]
[1721265853607,6.3008,158.71,158.67,1.26028977]
[1721265853813,6.3012,158.7,158.66,6.3026]
[1721265854516,6.3012,158.7,158.66,7.56285489]
[1721265854710,15.29,158.72,158.67,15.7553]
[1721265854909,6.3003,158.73,158.68,7.56178387]
[1721265855312,15.7455,158.78,158.7,16.1547]
[1721265855522,6.2995,158.75,158.71,1.25989415]
[1721265855713,15.29,158.72,158.71,1.25989415]
[1721265856525,15.29,158.72,158.7,23.71549988]
[1721265856721,6.2996,158.74,158.7,16.1547]
[1721265857521,6.2996,158.74,158.71,1.25991972]
[1721265858938,15.7455,158.78,158.7,16.1547]
[1721265859140,45.0,158.77,158.7,16.1547]
[1721265859637,6.3008,158.71,158.67,6.302]
[1721265859844,6.3008,158.71,158.68,1.26016102]
[1721265860038,6.3004,158.72,158.68,7.56196102]
[1721265860416,45.0,158.77,158.69,6.3013]
[1721265860620,45.0,158.77,158.7,1.26001167]
[1721265860939,6.3011,158.7,158.66,38.5132]
[1721265861541,15.29,158.67,158.66,38.5132]
[1721265864562,15.29,158.72,158.68,6.3019]
[1721265864728,15.29,158.72,158.67,6.3022]
[1721265865036,21.5904,158.72,158.68,1.26024004]
[1721265865241,15.29,158.69,158.68,1.26024004]
[1721265865629,15.29,158.69,158.67,6.3022]
[1721265865822,15.29,158.69,158.67,7.56243433]
[1721265866020,15.29,158.69,158.67,6.3022]
[1721265866355,15.29,158.69,158.68,1.26019821]
[1721265867511,15.29,158.69,158.68,1.26023455]
[1721265867716,15.29,158.69,158.67,6.3022]
[1721265868020,15.29,158.69,158.67,7.56244665]
[1721265868233,15.29,158.7,158.66,32.2108]
[1721265869039,15.29,158.7,158.69,6.3014]
[1721265870422,6.2996,158.74,158.69,6.3014]
[1721265871312,15.29,158.74,158.73,6.2996]
[1721265871541,6.2983,158.78,158.73,7.55943361]
[1721265871739,6.2983,158.78,158.74,1.25970855]
[1721265872840,15.29,158.75,158.74,1.25970855]
[1721265873045,15.29,158.75,158.73,6.2996]
[1721265873339,6.2984,158.77,158.73,6.2996]
[1721265873546,6.2988,158.76,158.72,15.527]
[1721265874636,6.2993,158.75,158.72,15.527]
[1721265874945,6.2992,158.75,158.72,15.527]
[1721265875754,6.2996,158.74,158.71,6.6557]
[1721265876040,6.2996,158.74,158.68,31.5442]
[1721265876243,6.2996,158.74,158.69,1.26000616]
[1721265876626,6.2996,158.74,158.68,31.5442]
[1721265876829,6.2993,158.75,158.69,1.26001868]
[1721265877028,6.2993,158.75,158.7,6.301]
[1721265877522,6.2993,158.75,158.71,1.2600053]
[1721265879860,6.2993,158.75,158.71,7.5607053]
[1721265880157,6.2993,158.75,158.71,6.3007]
[1721265880655,31.0338,158.8,158.73,6.2996]
[1721265880817,15.29,158.8,158.74,1.25981782]
[1721265881331,6.298,158.78,158.74,6.2995]
[1721265883145,6.298,158.78,158.73,7.55955666]
[1721265885228,6.2984,158.77,158.73,7.55955666]
[1721265885426,6.2984,158.77,158.73,1.25975666]
[1721265885822,15.29,158.8,158.73,1.25975666]
[1721265886028,3.78480911,158.81,158.74,16.61827641]
[1721265886245,3.78480911,158.81,158.74,35.55827641]
[1721265886556,3.78480911,158.81,158.8,6.2972]
[1721265887326,3.78480911,158.81,158.8,27.4436]
[1721265887949,3.78480911,158.81,158.8,28.70268927]
[1721265889532,3.78480911,158.81,158.8,27.4436]
[1721265891230,3.78480911,158.81,158.8,21.1464]
[1721265891551,3.78480911,158.81,158.8,27.4436]
[1721265891759,3.78480911,158.81,158.79,6.2976]
[1721265892134,3.78480911,158.81,158.8,7.55642534]
[1721265896041,3.78480911,158.81,158.79,7.55666376]
[1721265897734,3.78480911,158.81,158.78,15.7444]
[1721265898471,3.78480911,158.81,158.79,1.2593394]
[1721265899036,3.78480911,158.81,158.79,7.5568394]
[1721265899849,3.78480911,158.81,158.8,1.25933]
[1721265900360,3.78480911,158.81,158.8,6.2972]
[1721265903068,3.78480911,158.81,158.8,7.55624513]
[1721265907345,3.78480911,158.81,158.8,6.2972]
[1721265907553,3.78480911,158.81,158.8,7.55620152]
[1721265908052,3.78480911,158.81,158.8,1.25900152]
[1721265908252,3.78480911,158.81,158.8,7.55620152]
[1721265908447,3.78480911,158.81,158.79,7.55667815]
[1721265908660,3.78480911,158.81,158.8,1.25926258]
[1721265909594,3.78480911,158.81,158.8,7.55646258]
[1721265910074,3.78480911,158.81,158.8,6.2972]
[1721265910576,6.2979,158.79,158.68,18.94]
[1721265910777,6.2979,158.79,158.69,15.29]
[1721265910957,15.29,158.74,158.72,1.25971573]
[1721265911283,11.34121988,158.81,158.72,35.39151573]
[1721265911284,10.08180911,158.81,158.72,35.39151573]
[1721265911574,15.29,158.8,158.79,6.2976]
[1721265911776,3.78480911,158.81,158.8,6.2972]
[1721265911948,3.78480911,158.81,158.8,7.55637142]
[1721265914392,3.78480911,158.81,158.8,22.84637142]
[1721265914880,3.78480911,158.81,158.8,21.5872]
[1721265915053,3.78480911,158.81,158.8,22.8461351]
[1721265915459,3.78480911,158.81,158.8,6.2972]
[1721265916462,3.78480911,158.81,158.8,21.5872]
[1721265916782,3.78480911,158.81,158.8,6.2972]
[1721265918484,3.78480911,158.81,158.8,7.55632615]
[1721265918865,3.78480911,158.81,158.8,6.2972]
[1721265920395,3.78480911,158.81,158.8,7.55632639]
[1721265920686,3.78480911,158.81,158.8,6.2972]
[1721265920980,3.78480911,158.81,158.8,7.55631397]
[1721265921560,3.78480911,158.81,158.8,1.25910486]
[1721265921987,3.78480911,158.81,158.8,7.55630486]
[1721265922696,3.78480911,158.81,158.77,6.2983]
[1721265923185,3.78480911,158.81,158.78,6.2978]
[1721265923365,3.78480911,158.81,158.77,6.2983]
[1721265923863,3.78480911,158.79,158.76,22.0455]
[1721265924380,3.78480911,158.79,158.73,15.7497]
[1721265924381,6.298,158.78,158.73,15.7497]
[1721265924614,3.78480911,158.79,158.73,15.7497]
[1721265924883,3.78480911,158.79,158.74,6.2995]
[1721265925291,15.29,158.75,158.73,22.0495]
[1721265925492,15.29,158.74,158.73,22.0495]
[1721265925669,15.29,158.74,158.71,6.3007]
[1721265925867,6.2996,158.74,158.7,15.7529]
[1721265926076,1.25921077,158.78,158.7,15.7529]
[1721265926286,6.2988,158.76,158.71,6.3007]
[1721265927280,6.2988,158.76,158.7,15.7529]
[1721265927281,7.55851077,158.75,158.7,22.054]
[1721265927463,7.55891077,158.74,158.7,15.7529]
[1721265927789,6.2997,158.74,158.7,15.7529]
[1721265928492,1.25921077,158.76,158.7,15.7529]
[1721265928699,46.25921077,158.76,158.71,1.26005676]
[1721265928885,45.0,158.76,158.72,6.3003]
[1721265930883,6.277,158.77,158.73,7.55980888]
[1721265931097,6.277,158.77,158.74,1.2598004]
[1721265931709,3.78480911,158.79,158.74,1.2598004]
[1721265932004,3.78480911,158.79,158.72,6.3003]
[1721265932005,1.25921077,158.78,158.73,1.25979026]
[1721265932187,6.2987,158.77,158.74,1.25978581]
[1721265932389,6.2987,158.77,158.73,1.25978596]
[1721265932694,6.2989,158.76,158.71,6.3007]
[1721265933308,6.2992,158.75,158.71,1.25980929]
[1721265933469,6.2992,158.75,158.71,7.56050929]
[1721265933675,6.2988,158.76,158.72,6.3002]
[1721265933990,6.2988,158.76,158.73,1.25982482]
[1721265934174,6.2985,158.77,158.73,1.25982482]
[1721265934375,6.2984,158.77,158.74,1.25975035]
[1721265934586,6.2984,158.77,158.73,1.2597529]
[1721265934780,7.55811077,158.76,158.72,17.01023262]
[1721265934985,1.25921077,158.78,158.72,17.01023262]
[1721265935298,46.25921077,158.78,158.72,17.01023262]
[1721265935876,46.25921077,158.78,158.7,6.3011]
[1721265936074,6.2999,158.74,158.69,15.7538]
[1721265936275,6.2999,158.74,158.69,22.055]
[1721265937894,6.2993,158.75,158.7,6.301]
[1721265938109,6.2993,158.75,158.71,1.26000677]
[1721265938604,1.25921077,158.74,158.7,6.301]
[1721265939278,7.55881077,158.74,158.7,6.301]
[1721265939472,6.2996,158.74,158.7,6.301]
[1721265940102,1.25921077,158.73,158.69,22.0553]
[1721265940498,7.55921077,158.73,158.69,15.7538]
[1721265940679,46.25921077,158.72,158.67,6.3023]
[1721265940883,1.25921077,158.71,158.67,6.3023]
[1721265941101,7.56001077,158.71,158.66,22.0592]
[1721265941315,1.25921077,158.7,158.66,22.0592]
[1721265942087,7.56051077,158.7,158.66,22.0592]
[1721265942416,6.4615,158.75,158.64,6.3035]
[1721265942417,52.56111077,158.69,158.64,6.3035]
[1721265942604,6.3012,158.7,158.65,1.26040241]
[1721265942786,1.25921077,158.69,158.65,1.26040241]
[1721265942985,6.3008,158.71,158.66,6.3027]
[1721265943178,46.25921077,158.7,158.66,6.3027]
[1721265943382,52.56051077,158.7,158.66,6.3027]
[1721265943600,1.25921077,158.69,158.65,17.01780241]
[1721265943906,7.56081077,158.69,158.65,15.7574]
[1721265944112,1.25921077,158.69,158.65,23.32093775]
[1721265944284,7.56101077,158.69,158.65,15.7574]
[1721265944598,6.302,158.68,158.65,15.7574]
[1721265945110,45.0,158.7,158.65,23.32102976]
[1721265945278,6.3012,158.7,158.65,23.32102976]
[1721265945715,7.56081077,158.69,158.65,23.32102976]
[1721265945885,6.3016,158.69,158.65,15.7574]
[1721265947712,52.56151077,158.68,158.63,6.3038]
[1721265947916,51.3023,158.68,158.63,7.56436815]
[1721265948285,51.3023,158.68,158.64,6.3035]
[1721265949127,1.25921077,158.67,158.63,6.3038]
[1721265949625,7.56161077,158.67,158.63,6.3038]